bitfinex-derivatives/quotes_ETHF0:USTF0_20251013
["timestamp","ask_amount","ask_price","bid_price","bid_amount"]
[1760349151650,0.2244,4160.6,4160.5,2.40918256]
[1760349151841,0.2244,4160.6,4160.5,2.63498256]
[1760349152653,0.54449,4160.9,4160.8,1.2137]
[1760349153152,3.72549905,4160.9,4160.8,1.2137]
[1760349153353,0.54446,4161.2,4161.1,1.21366]
[1760349153754,0.00260217,4161.4,4161.3,0.7814]
[1760349153953,0.54704217,4161.4,4161.3,0.7814]
[1760349154153,3.71140815,4161.4,4161.3,0.7814]
[1760349154448,3.39136815,4161.4,4161.3,1.21365]
[1760349154753,0.00260217,4161.4,4161.3,4.42145]
[1760349154949,0.00260217,4161.4,4161.3,5.71409977]
[1760349155348,0.00260217,4161.4,4161.3,4.42145]
[1760349155549,0.00260217,4161.4,4161.3,5.71299732]
[1760349155750,0.65924217,4161.4,4161.3,4.82964732]
[1760349156053,0.6567,4160.8,4160.7,0.5556]
[1760349156950,0.6567,4160.8,4160.6,3.2078]
[1760349156951,0.72681,4160.7,4160.6,3.2078]
[1760349157161,0.2244,4160.1,4160.0,3.3364]
[1760349157450,0.2244,4160.1,4160.0,3.5617]
[1760349157656,0.2244,4160.1,4160.0,3.892]
[1760349159743,0.1122,4160.1,4160.0,4.1178]
[1760349159948,0.1122,4160.4,4160.3,0.88345]
[1760349160249,3.34714689,4160.4,4160.3,0.7814]
[1760349162454,3.41724689,4160.4,4160.3,0.3303]
[1760349162656,0.65677,4160.1,4160.0,4.09908]
[1760349162856,0.65677,4160.1,4160.0,4.32438]
[1760349163457,0.65677,4160.1,4160.0,4.55018]
[1760349164460,0.2244,4160.1,4160.0,4.55018]
[1760349164655,0.65677,4160.1,4160.0,4.55018]
[1760349165157,0.65677,4160.1,4160.0,4.32438]
[1760349165358,0.65677,4160.1,4160.0,4.55018]
[1760349166459,0.65677,4160.1,4160.0,1.34238]
[1760349166665,0.65677,4160.1,4160.0,4.55018]
[1760349167054,0.65677,4160.1,4160.0,1.34238]
[1760349167255,0.65677,4160.1,4160.0,4.55018]
[1760349167465,3.79845019,4160.1,4160.0,3.6667]
[1760349167760,3.79845019,4160.1,4160.0,3.3364]
[1760349168658,3.72835019,4160.1,4160.0,4.32438]
[1760349168860,3.72835019,4160.1,4160.0,4.55018]
[1760349169154,3.72835019,4160.1,4160.0,3.892]
[1760349169863,3.72835019,4160.1,4160.0,4.32438]
[1760349171465,3.79855019,4160.1,4160.0,4.09908]
[1760349171762,3.79855019,4160.1,4160.0,3.2078]
[1760349172459,3.72835019,4160.1,4160.0,3.95418]
[1760349172659,3.72835019,4160.1,4160.0,4.30068]
[1760349172863,3.72835019,4160.1,4160.0,4.51228]
[1760349173563,3.72835019,4160.1,4160.0,3.8683]
[1760349173759,3.72835019,4160.1,4160.0,3.654]
[1760349174161,3.79855019,4160.1,4160.0,3.654]
[1760349174364,3.72835019,4160.1,4160.0,3.8683]
[1760349175663,3.72835019,4160.1,4160.0,4.30068]
[1760349176465,3.29598019,4160.1,4160.0,4.51228]
[1760349176661,0.1123,4160.5,4160.4,1.17223]
[1760349177166,3.37648771,4160.5,4160.4,1.17223]
[1760349177667,0.0702,4160.3,4160.0,3.2078]
[1760349177867,0.72719,4159.9,4159.8,0.00118176]
[1760349178168,3.41426234,4159.9,4159.8,0.00118176]
[1760349178369,3.34406234,4159.9,4159.8,1.17349176]
[1760349178567,3.23176234,4159.9,4159.8,1.17349176]
[1760349179465,3.34406234,4159.9,4159.8,1.17349176]
[1760349179862,3.84665234,4159.9,4159.8,0.00118176]
[1760349180062,3.77645234,4159.9,4159.8,0.74759176]
[1760349180268,3.77645234,4159.9,4159.8,0.96189176]
[1760349181478,3.84665234,4159.9,4159.8,0.31518176]
[1760349182581,3.84665234,4159.9,4159.8,0.74759176]
[1760349183281,3.84665234,4159.9,4159.8,0.31518176]
[1760349184376,3.84665234,4159.9,4159.8,0.74759176]
[1760349184782,3.77645234,4159.9,4159.8,0.74759176]
[1760349184977,3.77645234,4159.9,4159.8,0.52948176]
[1760349188186,3.23176234,4159.9,4159.8,1.17349176]
[1760349188484,3.66415234,4159.9,4159.8,1.17349176]
[1760349188985,3.11946234,4159.9,4159.8,1.17349176]
[1760349189175,5.79464,4160.4,4160.3,0.7399]
[1760349189485,8.87369833,4160.4,4160.3,1.17225]
[1760349189786,8.87369833,4160.4,4160.3,0.7399]
[1760349189987,8.98599833,4160.4,4160.3,0.7399]
[1760349192586,8.98599833,4160.4,4160.3,0.5283]
[1760349192988,3.73599833,4160.4,4160.3,0.5283]
[1760349193783,3.80619833,4160.4,4160.3,0.314]
[1760349194392,4.34829915,4160.4,4160.3,0.314]
[1760349194887,4.34829915,4160.4,4159.8,0.52948176]
[1760349194888,0.65699,4159.9,4159.8,0.52948176]
[1760349195985,0.65699,4159.9,4159.8,0.31518176]
[1760349196192,0.72719,4159.9,4159.8,0.31518176]
[1760349196890,3.78716788,4159.9,4159.8,0.31518176]
[1760349198990,3.78716788,4159.9,4159.8,0.00118176]
[1760349198991,4.33063451,4159.9,4159.8,0.00118176]
[1760349201192,4.33063451,4159.9,4158.5,0.1322]
[1760349201193,0.2953,4159.1,4158.8,1.29468958]
[1760349201388,0.72781,4158.8,4158.7,1.29468958]
[1760349201598,0.72781,4158.8,4158.7,1.63548958]
[1760349201886,3.92458084,4158.8,4158.7,0.3408]
[1760349202689,3.42177084,4158.8,4158.7,1.21182]
[1760349202895,3.85428084,4158.8,4158.7,2.07398958]
[1760349203092,3.85428084,4158.8,4158.7,0.7793]
[1760349204494,3.85428084,4158.8,4158.7,1.21182]
[1760349205693,3.62928084,4158.8,4158.7,2.50650958]
[1760349206387,3.74178084,4158.8,4158.7,2.50650958]
[1760349206583,3.85428084,4158.8,4158.7,2.07398958]
[1760349206789,3.85428084,4158.8,4158.7,0.3408]
[1760349207091,3.85428084,4158.8,4158.7,0.5644]
[1760349207295,3.85428084,4158.8,4158.7,0.99692]
[1760349207799,3.85428084,4158.8,4158.7,1.21182]
[1760349207800,3.30927084,4158.8,4158.7,1.21182]
[1760349207990,3.30927084,4158.8,4158.7,2.50650958]
[1760349208190,3.74178084,4158.8,4158.7,1.21182]
[1760349208391,3.30927084,4158.8,4158.7,1.21182]
[1760349209702,3.86522,4159.7,4159.6,0.7793]
[1760349209894,3.93552,4159.7,4159.6,0.3408]
[1760349210092,0.54493,4159.6,4159.5,0.4733]
[1760349210292,0.72773,4159.6,4159.5,0.4733]
[1760349210494,3.87278176,4159.6,4159.5,0.4733]
[1760349211092,3.87278176,4159.6,4159.5,0.3408]
[1760349211695,0.65751,4158.8,4158.6,1.29355431]
[1760349211900,0.65751,4158.8,4158.7,0.2236]
[1760349212098,0.65751,4158.8,4158.7,0.5644]
[1760349212401,0.4325,4159.0,4158.9,1.2118]
[1760349212601,0.545,4159.0,4158.9,1.2118]
[1760349212798,3.65077194,4159.0,4158.9,1.2118]
[1760349212999,3.76327194,4159.0,4158.9,1.2118]
[1760349213300,3.65077194,4159.0,4158.9,1.2118]
[1760349213496,3.53827194,4159.0,4158.9,1.2118]
[1760349213698,3.65077194,4159.0,4158.9,1.2118]
[1760349213901,3.76327194,4159.0,4158.9,1.2118]
[1760349216101,3.21827194,4159.0,4158.9,1.2118]
[1760349216303,0.54495,4159.5,4159.4,0.87094]
[1760349216494,0.65745,4159.5,4159.4,0.7793]
[1760349216694,0.65745,4159.5,4159.4,0.3408]
[1760349216695,3.87548697,4159.5,4159.4,0.3408]
[1760349217897,3.58017697,4159.5,4159.4,1.21175]
[1760349218100,3.80517697,4159.5,4159.4,1.21175]
[1760349219900,3.80517697,4159.5,4159.4,0.7793]
[1760349221705,3.14773697,4159.5,4159.4,1.21175]
[1760349222008,0.225,4160.2,4160.1,0.2236]
[1760349222399,3.31462234,4160.2,4160.1,0.2236]
[1760349222708,3.74698234,4160.2,4160.1,0.5644]
[1760349224700,0.43233,4160.6,4160.4,0.43234]
[1760349225011,3.67640064,4160.6,4160.5,0.9118]
[1760349225201,3.78890064,4160.6,4160.5,0.9118]
[1760349225507,3.85364355,4160.6,4160.5,0.9118]
[1760349225906,3.85364355,4160.6,4160.5,0.6969]
[1760349226096,3.92384355,4160.6,4160.5,0.4733]
[1760349226501,0.65716,4160.2,4160.1,3.85247]
[1760349226707,0.65716,4160.2,4160.1,0.2123]
[1760349226906,0.2248,4159.8,4159.7,1.50585431]
[1760349227206,0.2248,4159.8,4159.7,0.7605]
[1760349227608,0.2248,4159.8,4159.7,1.19292]
[1760349228012,0.65721,4159.8,4159.7,1.19292]
[1760349228505,0.2248,4159.8,4159.7,1.19292]
[1760349228714,0.43238,4160.1,4160.0,1.31938]
[1760349229204,3.74084121,4160.1,4160.0,1.31938]
[1760349229409,3.19606121,4160.1,4160.0,1.31938]
[1760349229603,3.2078,4160.8,4160.7,0.3177]
[1760349229802,3.7526,4160.8,4160.7,0.7399]
[1760349230106,6.37635555,4160.8,4160.7,1.17221]
[1760349230403,3.6401,4160.8,4160.7,1.17221]
[1760349230608,3.8651,4160.8,4160.7,0.7399]
[1760349230804,7.10430536,4160.8,4160.7,0.3177]
[1760349231601,0.65735,4160.3,4160.2,3.2078]
[1760349231802,0.65737,4160.1,4160.0,0.6573]
[1760349233014,0.65737,4160.1,4159.7,1.61125431]
[1760349233015,0.54491,4159.8,4159.7,1.61125431]
[1760349233312,3.83115391,4159.8,4159.7,0.3177]
[1760349233512,3.83115391,4159.8,4159.7,0.7399]
[1760349234007,3.83115391,4159.8,4159.7,0.5308]
[1760349234310,0.0703,4159.6,4159.3,1.29355431]
[1760349234515,0.65748,4159.1,4159.0,3.5534]
[1760349235107,3.8395121,4159.1,4159.0,3.8711]
[1760349235306,3.8395121,4159.1,4158.6,1.29355431]
[1760349235307,0.65751,4158.8,4158.7,0.3177]
[1760349235613,0.65751,4158.8,4158.7,0.5308]
[1760349236015,0.65751,4158.8,4158.7,0.7399]
[1760349236215,0.43251,4158.8,4158.7,0.7399]
[1760349236510,0.1125,4158.9,4158.8,0.43251]
[1760349236715,0.1125,4158.9,4158.8,1.17241]
[1760349240017,0.54493,4159.6,4159.5,0.8655]
[1760349240315,3.67127786,4159.6,4159.5,0.8655]
[1760349240707,3.78377786,4159.6,4159.5,0.8655]
[1760349241612,0.43238,4160.1,4159.7,1.17232]
[1760349241916,0.43239,4160.0,4159.7,1.17232]
[1760349242218,0.4324,4159.9,4159.7,1.17232]
[1760349243619,3.64021,4159.8,4159.7,1.17232]
[1760349244118,3.75271,4159.8,4159.7,1.17232]
[1760349244916,3.75271,4159.8,4159.7,0.3177]
[1760349244917,3.86521,4159.8,4159.7,0.3177]
[1760349245213,0.65743,4159.6,4159.5,0.3177]
[1760349245421,0.65743,4159.6,4159.5,0.6564]
[1760349245718,3.84669766,4159.6,4159.5,0.6564]
[1760349247423,3.84669766,4159.6,4159.5,1.29794]
[1760349247919,3.84669766,4159.6,4159.5,0.8655]
[1760349251220,3.18926766,4159.6,4159.5,1.29794]
[1760349251521,0.43243,4159.7,4159.6,1.17232]
[1760349251919,3.06818858,4159.7,4159.6,1.17232]
[1760349252229,0.43233,4160.5,4160.4,0.7399]
[1760349252416,0.54483,4160.5,4160.4,0.7399]
[1760349255121,0.43233,4160.5,4160.4,1.17224]
[1760349255617,0.54483,4160.6,4160.5,1.29783]
[1760349255817,0.43233,4160.6,4160.5,1.29783]
[1760349256021,3.59227696,4160.6,4160.5,1.29783]
[1760349256616,3.70477696,4160.6,4160.5,1.29783]
[1760349257122,3.59227696,4160.6,4160.5,1.29783]
[1760349257422,0.4323,4160.8,4160.7,0.4323]
[1760349257630,0.22760217,4161.4,4161.3,0.5308]
[1760349257829,0.65984217,4161.4,4161.3,0.7399]
[1760349258126,3.712533,4161.4,4161.3,1.17215]
[1760349258326,3.600033,4161.4,4161.3,1.17215]
[1760349258523,3.600033,4161.4,4161.3,0.7399]
[1760349259931,3.712533,4161.4,4161.3,0.7399]
[1760349263433,3.782633,4161.4,4161.3,0.3177]
[1760349263631,3.712533,4161.4,4161.3,0.5452]
[1760349264231,3.712533,4161.4,4161.3,0.7649]
[1760349264631,3.712533,4161.4,4161.3,0.5452]
[1760349265433,3.782633,4161.4,4161.3,0.5452]
[1760349265634,3.782633,4161.4,4161.3,0.3177]
[1760349266036,3.712533,4161.4,4161.3,0.5452]
[1760349266242,3.600033,4161.4,4161.3,0.7649]
[1760349267339,0.43484217,4161.4,4161.3,0.7649]
[1760349267536,0.43484217,4161.4,4161.3,1.19715]
[1760349268041,0.43484217,4161.4,4161.3,0.7649]
[1760349272342,0.00260217,4161.4,4161.3,1.19715]
[1760349272547,0.00260217,4161.4,4161.3,4.40495]
[1760349273143,0.4322,4161.8,4161.7,1.20901]
[1760349273449,0.4322,4161.8,4161.7,0.7768]
[1760349274048,0.43523092,4161.8,4161.7,0.77940217]
[1760349275254,0.66803092,4161.8,4161.7,0.77940217]
[1760349276149,0.43523092,4161.8,4161.7,0.77940217]
[1760349277646,0.55163092,4161.8,4161.7,0.77940217]
[1760349278850,0.43523092,4161.8,4161.7,0.77940217]
[1760349283766,0.55163092,4161.8,4161.7,0.77940217]
[1760349285959,0.66803092,4161.8,4161.7,0.77940217]
[1760349286659,3.92147606,4161.8,4161.7,0.00260217]
[1760349286858,3.92147606,4161.8,4161.7,0.31510217]
[1760349287061,3.84867606,4161.8,4161.7,0.31510217]
[1760349287257,3.84867606,4161.8,4161.7,0.52720217]
[1760349287961,3.92147606,4161.8,4161.7,0.52720217]
[1760349288661,3.84867606,4161.8,4161.7,0.52720217]
[1760349289756,3.92147606,4161.8,4161.7,0.31510217]
[1760349290467,3.84867606,4161.8,4161.7,0.52460217]
[1760349293664,3.61587606,4161.8,4161.7,0.73760217]
[1760349294065,3.73247606,4161.8,4161.7,0.73760217]
[1760349295573,0.43523092,4161.8,4161.7,0.73760217]
[1760349295772,0.43523092,4161.8,4161.7,2.03036857]
[1760349295962,0.43523092,4161.8,4161.7,0.73760217]
[1760349296168,0.43523092,4161.8,4161.7,2.46257857]
[1760349296473,0.43523092,4161.8,4161.7,2.03036857]
[1760349296868,0.43523092,4161.8,4161.7,2.46257857]
[1760349297972,0.43523092,4161.8,4161.7,2.03036857]
[1760349298673,0.43523092,4161.8,4161.7,0.73760217]
[1760349299273,0.66843092,4161.8,4161.7,0.73760217]
[1760349299472,0.66843092,4161.8,4161.7,2.03291665]
[1760349300273,0.66843092,4161.8,4161.7,1.16981217]
[1760349300666,0.55183092,4161.8,4161.7,1.16981217]
[1760349300967,0.43523092,4161.8,4161.7,1.16981217]
[1760349301275,0.66843092,4161.8,4161.7,1.16981217]
[1760349301474,0.66843092,4161.8,4161.7,0.73760217]
[1760349302471,0.66843092,4161.8,4161.7,1.16981217]
[1760349303367,0.55183092,4161.8,4161.7,1.16981217]
[1760349306375,0.66843092,4161.8,4161.7,0.73760217]
[1760349306973,3.8771827,4161.8,4161.7,1.62636717]
[1760349307173,3.6877827,4161.8,4161.7,2.04886717]
[1760349308476,3.8043827,4161.8,4161.7,2.04886717]
[1760349311367,3.8043827,4161.8,4161.7,2.48107717]
[1760349311572,3.6877827,4161.8,4161.7,2.48107717]
[1760349311777,3.6877827,4161.8,4161.7,1.18541217]
[1760349312480,3.5711827,4161.8,4161.7,1.18541217]
[1760349312776,0.00303092,4161.8,4161.7,1.18541217]
[1760349313375,0.5487,4162.7,4162.6,0.7506]
[1760349313581,0.97435723,4162.7,4162.6,0.7506]
[1760349313779,0.97435723,4162.7,4162.6,1.18271]
[1760349313972,0.1166,4162.9,4162.8,0.7506]
[1760349314283,0.97345595,4164.0,4163.9,0.213]
[1760349314580,3.85295106,4164.0,4163.9,0.7506]
[1760349314972,3.42785171,4164.0,4163.9,0.7506]
[1760349315773,3.85982171,4164.0,4163.9,0.7506]
[1760349317578,3.31125171,4164.0,4163.9,0.7506]
[1760349317877,0.00301741,4164.0,4163.9,0.7506]
[1760349319977,0.11961741,4164.0,4163.9,0.7506]
[1760349321482,0.55158741,4164.0,4163.9,0.7506]
[1760349321989,0.43498741,4164.0,4163.9,1.18258]
[1760349322988,0.54918741,4164.0,4163.9,1.18258]
[1760349323279,0.54918741,4164.0,4163.9,0.7506]
[1760349323492,0.66338741,4164.0,4163.9,0.7506]
[1760349324981,0.43201,4163.6,4163.5,0.1269]
[1760349325181,0.66041,4163.6,4163.5,0.3365]
[1760349325492,0.66041,4163.6,4163.5,0.5499]
[1760349325787,0.66041,4163.6,4163.5,0.874]
[1760349326184,0.43206,4163.1,4163.0,0.1269]
[1760349326384,0.66046,4163.1,4163.0,0.6606]
[1760349326586,0.73186,4163.1,4163.0,0.451]
[1760349326784,0.66046,4163.1,4163.0,0.451]
[1760349327185,0.66046,4163.1,4163.0,0.874]
[1760349329395,0.43206,4163.1,4163.0,0.874]
[1760349329591,4.28782,4163.7,4163.2,0.7471]
[1760349329592,0.43204,4163.3,4163.2,0.7471]
[1760349330897,0.54624,4163.3,4163.2,0.7471]
[1760349331898,0.66044,4163.3,4163.2,0.7471]
[1760349332699,0.54624,4163.3,4163.2,0.7471]
[1760349335902,0.43204,4163.3,4163.2,0.7471]
[1760349336094,0.54624,4163.3,4163.2,0.7471]
[1760349336494,0.43204,4163.3,4163.2,0.7471]
[1760349337002,0.43498741,4164.0,4163.9,0.7471]
[1760349337198,0.54918741,4164.0,4163.9,0.7471]
[1760349337403,3.78424908,4164.0,4163.9,0.7471]
[1760349340705,3.78424908,4164.0,4163.9,0.5337]
[1760349341415,3.12387908,4164.0,4163.9,1.17908]
[1760349341718,0.00301741,4164.0,4163.9,1.17908]
[1760349342317,0.43498741,4164.0,4163.9,1.17908]
[1760349342513,0.54918741,4164.0,4163.9,0.7471]
[1760349342817,0.66338741,4164.0,4163.9,0.7471]
[1760349343006,0.66338741,4164.0,4163.9,0.5337]
[1760349343214,0.73478741,4164.0,4163.9,0.3241]
[1760349343513,3.83935914,4164.0,4163.9,0.3241]
[1760349344017,3.83935914,4164.0,4163.6,0.86243731]
[1760349344211,0.2284,4163.1,4163.0,0.451]
[1760349344513,0.73186,4163.1,4163.0,0.451]
[1760349344714,0.2284,4163.1,4163.0,0.6606]
[1760349345018,0.2284,4163.1,4163.0,0.874]
[1760349345417,0.77364634,4163.1,4163.0,0.874]
[1760349347611,1.20570634,4163.1,4163.0,0.874]
[1760349350317,0.66046,4163.1,4163.0,0.874]
[1760349350620,0.66451,4162.6,4162.4,3.2078]
[1760349350816,0.2324,4162.1,4162.0,0.3572]
[1760349351012,0.2324,4162.1,4162.0,0.5801]
[1760349351214,0.66457,4162.1,4162.0,0.8993]
[1760349351814,0.1162,4162.1,4162.0,1.33148]
[1760349352018,0.2324,4162.6,4162.5,0.683]
[1760349352517,3.84729639,4162.6,4162.5,0.683]
[1760349352910,3.91989639,4162.6,4162.5,0.4527]
[1760349354217,3.84729639,4162.6,4162.5,0.9059]
[1760349356123,3.73109639,4162.6,4162.5,0.9059]
[1760349357124,3.84729639,4162.6,4162.5,0.9059]
[1760349358123,3.84729639,4162.6,4162.5,0.683]
[1760349359617,3.84729639,4162.6,4162.5,0.9059]
[1760349360127,3.73109639,4162.6,4162.5,0.9059]
[1760349360425,3.73109639,4162.6,4162.5,1.33802]
[1760349361118,3.61489639,4162.6,4162.5,1.33802]
[1760349361923,3.61489639,4162.6,4162.5,0.9059]
[1760349362926,3.61489639,4162.6,4162.5,1.33802]
[1760349365120,3.2078,4163.2,4162.5,1.33802]
[1760349365326,0.43207,4163.0,4162.9,1.20447]
[1760349365722,0.54827,4163.0,4162.9,1.20447]
[1760349366726,0.43207,4163.0,4162.9,1.20447]
[1760349366927,0.66441,4163.6,4163.5,0.683]
[1760349367127,1.20877263,4163.6,4163.5,0.9059]
[1760349367426,4.27253573,4163.6,4163.5,0.9059]
[1760349367724,4.34513573,4163.6,4163.5,0.683]
[1760349367923,4.34527003,4163.6,4163.5,0.683]
[1760349368316,4.34527003,4163.6,4163.5,0.3192]
[1760349368516,4.34527003,4163.6,4163.0,0.3638]
[1760349368517,0.66446,4163.1,4163.0,0.3638]
[1760349368720,0.66451,4162.6,4162.5,0.683]
[1760349369318,3.2804,4163.2,4162.5,0.9059]
[1760349369527,0.66446,4163.1,4163.0,0.683]
[1760349369717,3.87543112,4163.1,4163.0,0.4527]
[1760349370432,4.42023048,4163.1,4163.0,0.3192]
[1760349372524,3.87543112,4163.1,4163.0,0.3192]
[1760349373128,0.66451,4162.6,4162.5,0.3638]
[1760349373428,0.66451,4162.6,4162.5,1.33802]
[1760349374934,0.66451,4162.6,4162.5,2.63295156]
[1760349376237,0.4321,4162.7,4162.6,1.2045]
[1760349376428,0.4321,4162.7,4162.6,2.49950009]
[1760349376629,0.5483,4162.7,4162.6,0.7724]
[1760349377136,0.6645,4162.7,4162.6,0.7724]
[1760349377730,3.74242267,4162.7,4162.6,0.7724]
[1760349377933,3.74242267,4162.7,4162.6,1.20451]
[1760349379631,0.5483,4162.7,4162.6,1.20451]
[1760349380430,0.4321,4162.7,4162.6,2.49951009]
[1760349380831,1.08015,4163.2,4162.8,0.86488]
[1760349380832,0.43209,4162.9,4162.8,0.86488]
[1760349381036,0.43209,4162.9,4162.8,1.19848]
[1760349381338,3.49646451,4162.9,4162.8,1.19848]
[1760349381936,0.54813,4163.4,4163.3,0.43204]
[1760349382141,1.09679813,4163.4,4163.3,1.19844]
[1760349382442,0.43203,4163.4,4163.3,1.19844]
[1760349382637,0.43202,4163.5,4163.4,1.19842]
[1760349382839,0.98069977,4163.5,4163.4,1.19842]
[1760349383535,1.21289977,4163.5,4163.4,1.19842]
[1760349384044,1.21289977,4163.5,4163.4,0.7664]
[1760349384844,1.21289977,4163.5,4163.4,1.19843]
[1760349385045,0.66422,4163.5,4163.4,1.19843]
[1760349385546,0.2322,4163.5,4163.4,1.19843]
[1760349385845,0.432,4163.8,4163.7,0.7664]
[1760349386040,1.21271446,4163.8,4163.7,0.7664]
[1760349386240,4.38402447,4163.8,4163.7,0.7664]
[1760349387138,3.95202447,4163.8,4163.7,1.1984]
[1760349387349,0.43499741,4164.0,4163.9,0.43198]
[1760349387540,0.55109741,4164.0,4163.9,1.19838]
[1760349387842,3.61163669,4164.0,4163.9,1.19838]
[1760349388636,3.17965669,4164.0,4163.9,1.19838]
[1760349388845,0.00301741,4164.0,4163.9,1.19838]
[1760349389046,0.43498741,4164.0,4163.9,1.19838]
[1760349391148,0.55108741,4164.0,4163.9,1.19838]
[1760349391441,0.55108741,4164.0,4163.9,0.7664]
[1760349391636,0.66718741,4164.0,4163.9,0.7664]
[1760349393750,0.66718741,4164.0,4163.9,1.19838]
[1760349394345,0.66718741,4164.0,4163.9,0.7664]
[1760349394549,0.73684,4163.3,4163.2,1.29500009]
[1760349394759,0.66426,4163.2,4163.1,0.4328]
[1760349395047,3.57369095,4163.7,4163.6,0.2184]
[1760349395349,0.432,4163.7,4163.6,0.7664]
[1760349395649,3.57369095,4163.7,4163.6,0.7664]
[1760349396752,0.00301741,4164.0,4163.9,0.43198]
[1760349397053,0.00301741,4164.0,4163.6,4.50280009]
[1760349397054,0.66407,4165.0,4164.9,0.552]
[1760349397350,0.66407,4165.0,4164.9,0.7664]
[1760349397853,0.66694884,4165.0,4164.9,0.76840643]
[1760349398852,0.23507884,4165.0,4164.9,0.76840643]
[1760349399048,0.00287884,4165.0,4164.9,0.76840643]
[1760349400246,0.11897884,4165.0,4164.9,0.76840643]
[1760349402256,0.23507884,4165.0,4164.9,0.55400643]
[1760349403954,3.46121142,4165.0,4164.9,0.00200643]
[1760349404254,4.00750049,4165.0,4164.9,0.00200643]
[1760349406356,4.43937049,4165.0,4164.9,0.00200643]
[1760349406951,0.73594,4164.3,4164.2,3.5525]
[1760349407352,3.74156073,4164.3,4164.2,3.7781]
[1760349407547,3.74156073,4164.3,4164.2,4.0074]
[1760349407955,3.50996073,4164.3,4164.2,4.01023758]
[1760349408854,3.62576073,4164.3,4164.2,4.01023758]
[1760349410459,3.74156073,4164.3,4164.2,4.01023758]
[1760349413855,3.62576073,4164.3,4164.2,4.01023758]
[1760349415662,3.74166073,4164.3,4164.2,4.01023758]
[1760349417461,3.74166073,4164.3,4164.2,3.78093758]
[1760349417861,3.81406073,4164.3,4164.2,3.78093758]
[1760349418262,3.81406073,4164.3,4164.2,3.55533758]
[1760349419457,3.74166073,4164.3,4164.2,3.76663758]
[1760349420866,3.74166073,4164.3,4164.2,4.19858758]
[1760349421165,3.74166073,4164.3,4164.2,3.55533758]
[1760349421369,3.81406073,4164.3,4164.2,3.55533758]
[1760349421563,3.74166073,4164.3,4164.2,3.76663758]
[1760349422161,3.81406073,4164.3,4164.2,3.55533758]
[1760349422561,3.74166073,4164.3,4164.2,3.76663758]
[1760349422761,3.81406073,4164.3,4164.2,3.55533758]
[1760349422966,3.74166073,4164.3,4164.2,3.76663758]
[1760349423467,3.30972073,4164.3,4164.2,4.41028758]
[1760349423670,3.74166073,4164.3,4164.2,4.41028758]
[1760349424568,3.07802073,4164.3,4164.2,4.41028758]
[1760349425779,3.50996073,4164.3,4164.2,4.41028758]
[1760349428378,0.66654884,4165.0,4164.9,0.2113]
[1760349428573,1.21106223,4165.0,4164.9,0.7612]
[1760349428773,4.32047189,4165.0,4164.9,0.7612]
[1760349428969,3.88860189,4165.0,4164.9,1.19308]
[1760349429175,3.65680189,4165.0,4164.9,1.19308]
[1760349429977,3.1122885,4165.0,4164.9,1.19308]
[1760349431180,4.08878688,4165.0,4164.9,1.19308]
[1760349431382,3.7759585,4165.0,4164.9,0.7612]
[1760349431683,4.3205367,4165.0,4164.9,0.7612]
[1760349433384,4.2046367,4165.0,4164.9,0.7612]
[1760349433582,4.3205367,4165.0,4164.9,0.7612]
[1760349434878,3.7759585,4165.0,4164.9,0.7612]
[1760349435886,3.8483585,4165.0,4164.9,0.3382]
[1760349436086,4.39123951,4165.0,4164.9,0.3382]
[1760349436581,4.31883951,4165.0,4164.9,0.7612]
[1760349436976,4.08703951,4165.0,4164.9,0.7612]
[1760349437182,4.08703951,4165.0,4164.9,1.19308]
[1760349438086,4.31883951,4165.0,4164.9,0.7612]
[1760349438688,4.39123951,4165.0,4164.9,0.5495]
[1760349439389,4.39123951,4165.0,4164.9,0.3382]
[1760349440286,4.39123951,4165.0,4164.5,0.1369]
[1760349440287,0.66351,4164.6,4164.5,0.1369]
[1760349440489,0.73581,4164.6,4164.5,0.1369]
[1760349440789,0.66351,4164.6,4164.5,0.6849]
[1760349441488,3.85123023,4164.6,4164.5,0.3268]
[1760349441680,0.54774,4164.3,4164.2,3.96653758]
[1760349441884,3.54733023,4164.6,4164.5,0.5667]
[1760349442085,0.54771,4164.6,4164.5,0.8935]
[1760349442389,4.19643022,4164.6,4164.5,0.8935]
[1760349442588,4.31223022,4164.6,4164.5,0.8935]
[1760349442786,4.31222771,4164.6,4164.5,0.8935]
[1760349442987,3.76932691,4164.6,4164.5,0.8935]
[1760349443190,4.31222161,4164.6,4164.5,0.8935]
[1760349445294,3.76932691,4164.6,4164.5,1.32542]
[1760349446892,3.10581691,4164.6,4164.5,0.8935]
[1760349447089,0.00287884,4165.0,4164.9,1.18778]
[1760349447295,0.00287884,4165.0,4164.9,4.39558]
[1760349448983,0.73864884,4165.0,4164.9,0.3268]
[1760349449188,0.66634884,4165.0,4164.9,0.3268]
[1760349449388,0.66634884,4165.0,4164.9,0.548]
[1760349449893,1.20913165,4165.0,4164.9,0.548]
[1760349450396,0.66351,4164.6,4164.5,0.4644]
[1760349450600,0.66351,4164.6,4164.5,0.6856]
[1760349450896,3.76395082,4164.6,4164.5,1.11752]
[1760349451098,3.76395082,4164.6,4164.5,1.32542]
[1760349451490,3.76395082,4164.6,4164.5,0.8935]
[1760349451691,3.76395082,4164.6,4164.5,0.6856]
[1760349451898,3.76395082,4164.6,4164.5,1.32542]
[1760349452196,3.21624082,4164.6,4164.5,1.32542]
[1760349452900,3.64815082,4164.6,4164.5,1.32542]
[1760349453899,3.10044082,4164.6,4164.5,1.32542]
[1760349454295,0.00287884,4165.0,4164.9,1.19368]
[1760349454497,0.54581851,4165.0,4164.9,1.19368]
[1760349455400,1.09348851,4165.0,4164.9,1.19368]
[1760349455803,0.66161851,4165.0,4164.9,1.19368]
[1760349457002,0.55054884,4165.0,4164.9,1.19368]
[1760349457202,0.43474884,4165.0,4164.9,1.19368]
[1760349457602,1.09353498,4165.0,4164.9,1.19368]
[1760349457796,0.55054884,4165.0,4164.9,1.19368]
[1760349457996,1.0935353,4165.0,4164.9,1.19368]
[1760349460200,1.2093353,4165.0,4164.9,0.7618]
[1760349460401,4.36983964,4165.0,4164.9,0.3285]
[1760349461607,0.73591,4164.6,4164.5,0.1376]